{"text_format":"1","workbook":"xlsx","n_sheets":4,"sheets":["Лист1","Лист2","Лист7","Лист8"],"not_rendered":{"charts":0,"images":0,"macros":1,"external_links":0,"defined_names":0,"comments":0,"pivot_tables":0},"unopened":[],"bounds":{"document_bytes":16777216,"sheet_cells":100000,"rows_first":2000,"rows_last":500,"rows_between":2000,"halvings":0,"cell_chars":16384,"cell_head_chars":4096},"cells_cut":0,"cells_raw":0,"read":"whole","date_system":"1900"}

{"sheet":"Лист1","index":0,"n_rows":0,"n_cols":0,"rows_kept":0,"cut":false,"hidden":false,"merged":[]}

{"sheet":"Лист2","index":1,"n_rows":38,"n_cols":4,"rows_kept":38,"cut":false,"hidden":false,"merged":[]}
["Статистика по звонкам"]
["Период:","2018-02-26"]
["Оператор","Принято","Зарегистрировано","Процент"]
["Агафонова Алина Александровна",153,153,{"$f":"B4/C4*100","v":100}]
["Баделина Лилия Мансуровна",120,120,{"$f":"B5/C5*100","v":100}]
["Волгина Татьяна Михайловна",148,148,100]
["Дряхлова Екатерина Евгеньевна",58,58,100]
["Никифорова Марина Витальевна",101,101,100]
["Строев Алексей Юрьевич",114,114,100]
["Черновской Дмитрий Михайлович",120,120,100]
["Шмельков Дмитрий Юрьевич",174,174,100]
["Всего:",{"$f":"SUM(B4:B11)","v":988},{"$f":"SUM(C4:C11)","v":988}]
[]
["Статистика по звонкам"]
["Период:","2018-02-26"]
["Оператор","Принято","Зарегистрировано","Процент"]
["Багрова Дарья Дмитриевна",172,172,{"$f":"B17/C17*100","v":100}]
["Базурина Екатерина Александровна",119,119,{"$f":"B18/C18*100","v":100}]
["Киргизова Оксана Сергеевна",144,144,100]
["Прядилов Валерий Владимирович",null,null,{"$error":"#DIV/0!"}]
["Пылеева Ксения Юрьевна",null,null,{"$error":"#DIV/0!"}]
["Хватова Анастасия Юрьевна",161,268,60.074626865671647]
["Чистова Татьяна Владимировна",161,165,97.575757575757578]
["Шляпникова Анастасия Игоревна",105,null,{"$error":"#DIV/0!"}]
["Всего:",{"$f":"SUM(B17:B24)","v":862},{"$f":"SUM(C17:C24)","v":868}]
[]
["Статистика по звонкам"]
["Период:","2018-02-26"]
["Оператор","Принято","Зарегистрировано","Процент"]
["Грушина Татьяна Анатольевна",157,157,{"$f":"B30/C30*100","v":100}]
["Малков Николай Павлович",175,175,{"$f":"B31/C31*100","v":100}]
["Медведев Михаил Андреевич",133,131,101.52671755725191]
["Миленин Арсений Сергеевич",41,41,100]
["Половая Татьяна Анатольевна",178,177,100.56497175141243]
["Щитаева Юлия Евгеньевна",102,102,100]
["Южакова Елена Евгеньевна",171,171,100]
["Юмашева Раиса Николаевна",145,145,100]
["Всего:",{"$f":"SUM(B30:B37)","v":1102},{"$f":"SUM(C30:C37)","v":1099}]

{"sheet":"Лист7","index":2,"n_rows":38,"n_cols":4,"rows_kept":38,"cut":false,"hidden":false,"merged":[]}
["Статистика по звонкам"]
["Период:","2018-02-26"]
["Оператор","Принято","Зарегистрировано","Процент"]
["Агафонова Алина Александровна",null,153,{"$f":"B4/C4*100","v":0}]
["Баделина Лилия Мансуровна",null,120,{"$f":"B5/C5*100","v":0}]
["Волгина Татьяна Михайловна",null,148,0]
["Дряхлова Екатерина Евгеньевна",null,58,0]
["Никифорова Марина Витальевна",null,101,0]
["Строев Алексей Юрьевич",null,114,0]
["Черновской Дмитрий Михайлович",null,120,0]
["Шмельков Дмитрий Юрьевич",null,174,0]
["Всего:",{"$f":"SUM(B4:B11)","v":0},{"$f":"SUM(C4:C11)","v":988}]
[]
["Статистика по звонкам"]
["Период:","2018-02-26"]
["Оператор","Принято","Зарегистрировано","Процент"]
["Багрова Дарья Дмитриевна",null,172,{"$f":"B17/C17*100","v":0}]
["Базурина Екатерина Александровна",null,119,{"$f":"B18/C18*100","v":0}]
["Киргизова Оксана Сергеевна",null,144,0]
["Прядилов Валерий Владимирович",null,null,{"$error":"#DIV/0!"}]
["Пылеева Ксения Юрьевна",null,null,{"$error":"#DIV/0!"}]
["Хватова Анастасия Юрьевна",null,268,0]
["Чистова Татьяна Владимировна",null,165,0]
["Шляпникова Анастасия Игоревна",null,null,{"$error":"#DIV/0!"}]
["Всего:",{"$f":"SUM(B17:B24)","v":0},{"$f":"SUM(C17:C24)","v":868}]
[]
["Статистика по звонкам"]
["Период:","2018-02-26"]
["Оператор","Принято","Зарегистрировано","Процент"]
["Грушина Татьяна Анатольевна",null,157,{"$f":"B30/C30*100","v":0}]
["Малков Николай Павлович",null,175,{"$f":"B31/C31*100","v":0}]
["Медведев Михаил Андреевич",null,131,0]
["Миленин Арсений Сергеевич",null,41,0]
["Половая Татьяна Анатольевна",null,177,0]
["Щитаева Юлия Евгеньевна",null,102,0]
["Южакова Елена Евгеньевна",null,171,0]
["Юмашева Раиса Николаевна",null,145,0]
["Всего:",{"$f":"SUM(B30:B37)","v":0},{"$f":"SUM(C30:C37)","v":1099}]

{"sheet":"Лист8","index":3,"n_rows":38,"n_cols":4,"rows_kept":38,"cut":false,"hidden":false,"merged":[]}
["Статистика по звонкам"]
["Период:","2018-02-26"]
["Оператор","Принято","Зарегистрировано","Процент"]
["Агафонова Алина Александровна",null,153,{"$f":"B4/C4*100","v":0}]
["Баделина Лилия Мансуровна",null,120,{"$f":"B5/C5*100","v":0}]
["Волгина Татьяна Михайловна",null,148,0]
["Дряхлова Екатерина Евгеньевна",null,58,0]
["Никифорова Марина Витальевна",null,101,0]
["Строев Алексей Юрьевич",null,114,0]
["Черновской Дмитрий Михайлович",null,120,0]
["Шмельков Дмитрий Юрьевич",null,174,0]
["Всего:",{"$f":"SUM(B4:B11)","v":0},{"$f":"SUM(C4:C11)","v":988}]
[]
["Статистика по звонкам"]
["Период:","2018-02-26"]
["Оператор","Принято","Зарегистрировано","Процент"]
["Багрова Дарья Дмитриевна",null,172,{"$f":"B17/C17*100","v":0}]
["Базурина Екатерина Александровна",null,119,{"$f":"B18/C18*100","v":0}]
["Киргизова Оксана Сергеевна",null,144,0]
["Прядилов Валерий Владимирович",null,null,{"$error":"#DIV/0!"}]
["Пылеева Ксения Юрьевна",null,null,{"$error":"#DIV/0!"}]
["Хватова Анастасия Юрьевна",null,268,0]
["Чистова Татьяна Владимировна",null,165,0]
["Шляпникова Анастасия Игоревна",null,null,{"$error":"#DIV/0!"}]
["Всего:",{"$f":"SUM(B17:B24)","v":0},{"$f":"SUM(C17:C24)","v":868}]
[]
["Статистика по звонкам"]
["Период:","2018-02-26"]
["Оператор","Принято","Зарегистрировано","Процент"]
["Грушина Татьяна Анатольевна",null,157,{"$f":"B30/C30*100","v":0}]
["Малков Николай Павлович",null,175,{"$f":"B31/C31*100","v":0}]
["Медведев Михаил Андреевич",null,131,0]
["Миленин Арсений Сергеевич",null,41,0]
["Половая Татьяна Анатольевна",null,177,0]
["Щитаева Юлия Евгеньевна",null,102,0]
["Южакова Елена Евгеньевна",null,171,0]
["Юмашева Раиса Николаевна",null,145,0]
["Всего:",{"$f":"SUM(B30:B37)","v":0},{"$f":"SUM(C30:C37)","v":1099}]